[Event "DFMMLV 2019"]
[Site "Braunfels"]
[Date "2019.06.20"]
[Round "1.18"]
[White "Siegl, Melina"]
[Black "Wulf, Constanze"]
[Result "1-0"]
[ECO "B50"]
[WhiteElo "2029"]
[BlackElo "1711"]
[Annotator "NA"]
[PlyCount "67"]
[EventDate "2019.06.20"]
[EventType "team-tourn"]
[EventCountry "GER"]
[SourceTitle "playchess.com"]
[Source "ChessBase"]
[SourceQuality "1"]
[WhiteTeam "Bayern 1"]
[BlackTeam "Hamburg"]
[TimeControl "40/5400+30:1800+30"]

1. e4 {[%emt 0:00:00]} c5 {[%emt 0:00:00]} 2. Nf3 {[%emt 0:00:00]} d6 {[%emt 0:00:00]} 3. d3 {[%emt 0:00:00]} g6 {[%emt 0:00:32]} 4. g3 {[%emt 0:00:05]} Bg7 {[%emt 0:00:05]} 5. Bg2 {[%emt 0:00:05]} Nc6 {[%emt 0:00:07]} 6. c3 {[%emt 0:00:23]} Nf6 {[%emt 0:16:09]} 7. h3 {[%emt 0:02:16]} O-O {[%emt 0:00:52]} 8. O-O {[%emt 0:02:14]} Rb8 {[%emt 0:01:49]} 9. Nh4 {[%emt 0:12:19]} Qc7 {[%emt 0:10:20]} 10. f4 {[%emt 0:04:38]} e5 {[%emt 0:16:17]} 11. f5 {[%emt 0:04:24]} b5 {[%emt 0:11:19]} 12. Be3 {[%emt 0:04:59]} b4 {[%emt 0:07:40]} 13. c4 {[%emt 0:06:56]} Nd4 {[%emt 0:04:09]} 14. Nd2 {[%emt 0:05:32]} Bd7 {[%emt 0:02:28]} 15. g4 {[%emt 0:04:14]} Rfd8 {[%emt 0:09:33]} 16. Ndf3 {[%emt 0:03:28]} a5 {[%emt 0:01:41]} 17. Qd2 {[%emt 0:02:12]} b3 {[%emt 0:01:55]} 18. Nxd4 {[%emt 0:00:56]} cxd4 {[%emt 0:00:40]} 19. Bh6 {[%emt 0:00:37]} bxa2 {[%emt 0:01:20]} 20. Bxg7 {[%emt 0:03:45]} Kxg7 {[%emt 0:00:07]} 21. Rxa2 {[%emt 0:04:36]} Rb3 {[%emt 0:00:38]} 22. Bf3 {[%emt 0:05:39]} Rdb8 {[%emt 0:02:12]} 23. Bd1 {[%emt 0:05:40]} R3b4 {[%emt 0:00:24]} 24. b3 {[%emt 0:02:01]} Qd8 {[%emt 0:02:23]} 25. Nf3 {[%emt 0:06:48]} Qb6 {[%emt 0:04:32]} 26. Qf2 {[%emt 0:03:10]} Qd8 {[%emt 0:01:50]} 27. Kh2 {[%emt 0:02:47]} Ra8 {[%emt 0:01:37]} 28. fxg6 {[%emt 0:04:57]} fxg6 {[%emt 0:01:18]} 29. g5 {[%emt 0:03:51]} Nh5 {[%emt 0:00:24]} 30. Nxd4 {[%emt 0:03:00]} exd4 {[%emt 0:01:06]} 31. Qxd4+ {[%emt 0:00:24]} Kg8 {[%emt 0:00:16]} 32. Qd5+ {[%emt 0:00:49]} Kh8 {[%emt 0:00:17]} 33. Bxh5 {[%emt 0:00:19]} gxh5 {[%emt 0:00:03]} 34. Rf7 {[%emt 0:00:19]} 1-0

[Event "DFMMLV 2019"]
[Site "Braunfels"]
[Date "2019.06.20"]
[Round "1.19"]
[White "Tobianski, Karina"]
[Black "Stangl, Anita"]
[Result "0-1"]
[ECO "C00"]
[WhiteElo "1680"]
[BlackElo "2010"]
[Annotator "NA"]
[PlyCount "94"]
[EventDate "2019.06.20"]
[EventType "team-tourn"]
[EventCountry "GER"]
[SourceTitle "playchess.com"]
[Source "ChessBase"]
[SourceQuality "1"]
[WhiteTeam "Hamburg"]
[BlackTeam "Bayern 1"]
[TimeControl "40/5400+30:1800+30"]

1. e4 {[%emt 0:00:00]} e6 {[%emt 0:00:00]} 2. d3 {[%emt 0:00:00]} d5 {[%emt 0:00:08]} 3. Nd2 {[%emt 0:00:00]} Nf6 {[%emt 0:00:26]} 4. g3 {[%emt 0:00:07]} c5 {[%emt 0:02:40]} 5. Bg2 {[%emt 0:00:07]} Nc6 {[%emt 0:00:37]} 6. Ngf3 {[%emt 0:00:40]} d4 {[%emt 0:04:36]} 7. O-O {[%emt 0:11:26]} e5 {[%emt 0:01:52]} 8. Nc4 {[%emt 0:10:05]} Qc7 {[%emt 0:05:25]} 9. a4 {[%emt 0:04:45]} Be7 {[%emt 0:03:18]} 10. Nh4 {[%emt 0:05:40]} g6 {[%emt 0:09:24]} 11. f4 {[%emt 0:06:41]} Nh5 {[%emt 0:03:32]} 12. fxe5 {[%emt 0:10:21]} Nxe5 {[%emt 0:05:52]} 13. Nxe5 {[%emt 0:23:58]} Qxe5 {[%emt 0:01:36]} 14. Nf3 {[%emt 0:00:14]} Qc7 {[%emt 0:13:34]} 15. Bh6 {[%emt 0:00:23]} Bg4 {[%emt 0:13:44]} 16. Qd2 {[%emt 0:01:04]} O-O-O {[%emt 0:04:29]} 17. Ng5 {[%emt 0:03:18]} Bxg5 {[%emt 0:07:57]} 18. Bxg5 {[%emt 0:00:06]} Rde8 {[%emt 0:00:20]} 19. a5 {[%emt 0:04:09]} Be6 {[%emt 0:03:19]} 20. b4 {[%emt 0:01:40]} Rhf8 {[%emt 0:07:18]} 21. b5 {[%emt 0:00:28]} f6 {[%emt 0:00:28]} 22. Bh6 {[%emt 0:03:39]} Rf7 {[%emt 0:00:55]} 23. b6 {[%emt 0:00:07]} axb6 {[%emt 0:01:50]} 24. axb6 {[%emt 0:00:08]} Qxb6 {[%emt 0:01:08]} 25. Rfb1 {[%emt 0:00:06]} Qc6 {[%emt 0:00:14]} 26. e5 {[%emt 0:01:34]} Bd5 {[%emt 0:00:29]} 27. Ra8+ {[%emt 0:00:28]} Kd7 {[%emt 0:00:45]} 28. e6+ {[%emt 0:05:35]} Rxe6 {[%emt 0:01:36]} 29. Qa5 {[%emt 0:00:48]} Re8 {[%emt 0:03:27]} 30. Rxe8 {[%emt 0:04:32]} Kxe8 {[%emt 0:00:01]} 31. Re1+ {[%emt 0:00:07]} Kd7 {[%emt 0:00:53]} 32. Bxd5 {[%emt 0:00:47]} Qxd5 {[%emt 0:00:20]} 33. Qa8 {[%emt 0:00:20]} Ng7 {[%emt 0:03:25]} 34. Bxg7 {[%emt 0:00:53]} Rxg7 {[%emt 0:00:01]} 35. Re8 {[%emt 0:00:37]} Kc7 {[%emt 0:00:57]} 36. Qa5+ {[%emt 0:00:28]} Kc6 {[%emt 0:00:40]} 37. Rc8+ {[%emt 0:00:24]} Kd6 {[%emt 0:00:14]} 38. Rd8+ {[%emt 0:00:39]} Rd7 {[%emt 0:00:13]} 39. Qb6+ {[%emt 0:01:40]} Qc6 {[%emt 0:00:13]} 40. Rxd7+ {[%emt 0:01:05]} Kxd7 {[%emt 0:00:05]} 41. Qb3 {[%emt 0:30:18]} Qf3 {[%emt 0:31:36]} 42. Qf7+ {[%emt 0:00:00]} Kc6 {[%emt 0:00:00]} 43. Qe6+ {[%emt 0:00:00]} Kc7 {[%emt 0:00:00]} 44. Qe7+ {[%emt 0:00:00]} Kb6 {[%emt 0:00:00]} 45. Qd6+ {[%emt 0:00:00]} Kb5 {[%emt 0:00:00]} 46. Qd7+ {[%emt 0:00:00]} Kb4 {[%emt 0:00:00]} 47. Qxh7 {[%emt 0:00:00]} Qd1+ {[%emt 0:00:00]} 0-1

[Event "DFMMLV 2019"]
[Site "Braunfels"]
[Date "2019.06.20"]
[Round "1.20"]
[White "Ankerst, Milka"]
[Black "Neumann, Ramona"]
[Result "1-0"]
[ECO "C16"]
[WhiteElo "2005"]
[BlackElo "1709"]
[Annotator "NA"]
[PlyCount "71"]
[EventDate "2019.06.20"]
[EventType "team-tourn"]
[EventCountry "GER"]
[SourceTitle "playchess.com"]
[Source "ChessBase"]
[SourceQuality "1"]
[WhiteTeam "Bayern 1"]
[BlackTeam "Hamburg"]
[TimeControl "40/5400+30:1800+30"]

1. e4 {[%emt 0:00:00]} e6 {[%emt 0:00:00]} 2. d4 {[%emt 0:00:03]} d5 {[%emt 0:00:00]} 3. Nc3 {[%emt 0:00:18]} Bb4 {[%emt 0:00:29]} 4. e5 {[%emt 0:00:24]} Ne7 {[%emt 0:04:21]} 5. a3 {[%emt 0:03:16]} Bxc3+ {[%emt 0:00:35]} 6. bxc3 {[%emt 0:00:04]} b6 {[%emt 0:12:27]} 7. Nf3 {[%emt 0:01:46]} c5 {[%emt 0:07:27]} 8. Bd3 {[%emt 0:01:40]} Ba6 {[%emt 0:08:21]} 9. O-O {[%emt 0:02:12]} Bxd3 {[%emt 0:02:05]} 10. Qxd3 {[%emt 0:02:14]} c4 {[%emt 0:05:15]} 11. Qe2 {[%emt 0:02:45]} Nd7 {[%emt 0:04:59]} 12. Ng5 {[%emt 0:01:52]} h6 {[%emt 0:04:55]} 13. Qh5 {[%emt 0:03:52]} O-O {[%emt 0:07:57]} 14. Nh3 {[%emt 0:03:20]} Nf5 {[%emt 0:03:47]} 15. Qe2 {[%emt 0:05:39]} Re8 {[%emt 0:07:19]} 16. g4 {[%emt 0:11:31]} Qh4 {[%emt 0:04:21]} 17. Kg2 {[%emt 0:04:10]} Ne7 {[%emt 0:00:50]} 18. f4 {[%emt 0:00:54]} Rf8 {[%emt 0:07:00]} 19. Bd2 {[%emt 0:00:32]} Nc6 {[%emt 0:01:54]} 20. Be1 {[%emt 0:01:09]} Qe7 {[%emt 0:00:23]} 21. f5 {[%emt 0:03:18]} exf5 {[%emt 0:01:19]} 22. gxf5 {[%emt 0:00:56]} Rae8 {[%emt 0:02:41]} 23. Qg4 {[%emt 0:01:00]} Ncxe5 {[%emt 0:03:51]} 24. dxe5 {[%emt 0:01:03]} Qxe5 {[%emt 0:00:15]} 25. Bd2 {[%emt 0:02:38]} Nf6 {[%emt 0:01:20]} 26. Qf4 {[%emt 0:01:02]} Qe4+ {[%emt 0:02:11]} 27. Qxe4 {[%emt 0:01:28]} dxe4 {[%emt 0:00:47]} 28. Be3 {[%emt 0:02:57]} Rd8 {[%emt 0:01:27]} 29. Bd4 {[%emt 0:00:30]} Nd5 {[%emt 0:01:04]} 30. Kf2 {[%emt 0:00:42]} Rfe8 {[%emt 0:00:53]} 31. Rg1 {[%emt 0:01:51]} Nc7 {[%emt 0:00:49]} 32. Rxg7+ {[%emt 0:00:25]} Kf8 {[%emt 0:00:15]} 33. Rh7 {[%emt 0:01:19]} Nb5 {[%emt 0:01:38]} 34. f6 {[%emt 0:02:34]} Kg8 {[%emt 0:00:38]} 35. Rxh6 {[%emt 0:00:12]} Nxd4 36. Rg1+ {[%emt 0:00:11]} 1-0

[Event "DFMMLV 2019"]
[Site "Braunfels"]
[Date "2019.06.20"]
[Round "1.21"]
[White "Hoefner, Nina"]
[Black "Mehling, Katharina"]
[Result "0-1"]
[ECO "C14"]
[WhiteElo "1557"]
[BlackElo "1974"]
[Annotator "NA"]
[PlyCount "76"]
[EventDate "2019.06.20"]
[EventType "team-tourn"]
[EventCountry "GER"]
[SourceTitle "playchess.com"]
[Source "ChessBase"]
[SourceQuality "1"]
[WhiteTeam "Hamburg"]
[BlackTeam "Bayern 1"]
[TimeControl "40/5400+30:1800+30"]

1. e4 {[%emt 0:00:00]} e6 {[%emt 0:00:00]} 2. d4 {[%emt 0:00:00]} d5 {[%emt 0:00:00]} 3. Nc3 {[%emt 0:00:00]} Nf6 {[%emt 0:00:00]} 4. Bg5 {[%emt 0:00:12]} Be7 {[%emt 0:00:01]} 5. e5 {[%emt 0:01:44]} Nfd7 {[%emt 0:01:37]} 6. Bxe7 {[%emt 0:00:06]} Qxe7 {[%emt 0:00:17]} 7. Nf3 {[%emt 0:02:04]} a6 {[%emt 0:00:51]} 8. Be2 {[%emt 0:01:29]} c5 {[%emt 0:00:47]} 9. O-O {[%emt 0:05:38]} Nc6 {[%emt 0:02:25]} 10. a3 {[%emt 0:16:32]} cxd4 {[%emt 0:05:11]} 11. Nxd4 {[%emt 0:03:53]} Ndxe5 {[%emt 0:09:53]} 12. Rb1 {[%emt 0:18:01]} O-O {[%emt 0:05:10]} 13. Qd2 {[%emt 0:04:04]} Bd7 {[%emt 0:13:07]} 14. f4 {[%emt 0:06:54]} Qc5 {[%emt 0:05:01]} 15. Rbd1 {[%emt 0:01:36]} Qxd4+ {[%emt 0:03:45]} 16. Qxd4 {[%emt 0:00:37]} Nxd4 {[%emt 0:00:06]} 17. Rxd4 {[%emt 0:02:53]} Nc6 {[%emt 0:00:25]} 18. Rd2 {[%emt 0:01:38]} b5 {[%emt 0:09:21]} 19. Ra1 {[%emt 0:06:23]} Na5 {[%emt 0:12:56]} 20. b4 {[%emt 0:04:23]} Nc4 {[%emt 0:00:55]} 21. Bxc4 {[%emt 0:00:21]} bxc4 {[%emt 0:00:05]} 22. Rdd1 {[%emt 0:02:25]} Rfb8 {[%emt 0:00:57]} 23. Rdb1 {[%emt 0:00:27]} Kf8 {[%emt 0:01:44]} 24. Kf2 {[%emt 0:01:26]} Ke7 {[%emt 0:01:19]} 25. Ke3 {[%emt 0:01:06]} Kd6 {[%emt 0:00:58]} 26. Rd1 {[%emt 0:08:08]} a5 {[%emt 0:01:26]} 27. Na2 {[%emt 0:04:40]} Ba4 {[%emt 0:07:32]} 28. Rdc1 {[%emt 0:00:47]} f6 {[%emt 0:01:52]} 29. c3 {[%emt 0:02:11]} Bb3 {[%emt 0:00:20]} 30. Rf1 {[%emt 0:01:32]} Bxa2 {[%emt 0:00:09]} 31. Rxa2 {[%emt 0:00:02]} axb4 {[%emt 0:00:06]} 32. cxb4 {[%emt 0:00:30]} Rxb4 {[%emt 0:00:05]} 33. Kd2 {[%emt 0:00:44]} Rb3 {[%emt 0:00:28]} 34. Rfa1 {[%emt 0:01:10]} Ra4 {[%emt 0:00:08]} 35. Kc2 {[%emt 0:00:13]} d4 {[%emt 0:00:11]} 36. Kc1 {[%emt 0:01:41]} Kd5 {[%emt 0:01:45]} 37. Kc2 {[%emt 0:00:21]} d3+ {[%emt 0:00:09]} 38. Kd2 {[%emt 0:00:29]} Kd4 {[%emt 0:00:07]} 0-1

[Event "DFMMLV 2019"]
[Site "Braunfels"]
[Date "2019.06.20"]
[Round "1.22"]
[White "Braun, Kristin"]
[Black "Harder, Daniella"]
[Result "1-0"]
[ECO "B14"]
[WhiteElo "1895"]
[BlackElo "1630"]
[Annotator "NA"]
[PlyCount "63"]
[EventDate "2019.06.20"]
[EventType "team-tourn"]
[EventCountry "GER"]
[SourceTitle "playchess.com"]
[Source "ChessBase"]
[SourceQuality "1"]
[WhiteTeam "Bayern 1"]
[BlackTeam "Hamburg"]
[TimeControl "40/5400+30:1800+30"]

1. e4 {[%emt 0:00:00]} c6 {[%emt 0:00:00]} 2. d4 {[%emt 0:00:00]} d5 {[%emt 0:00:00]} 3. exd5 {[%emt 0:00:00]} cxd5 {[%emt 0:00:00]} 4. c4 {[%emt 0:00:00]} Nf6 {[%emt 0:02:12]} 5. Nc3 {[%emt 0:00:57]} g6 {[%emt 0:03:55]} 6. Nf3 {[%emt 0:01:02]} Bg7 {[%emt 0:00:31]} 7. Be3 {[%emt 0:01:20]} O-O {[%emt 0:01:07]} 8. Qb3 {[%emt 0:12:04]} Nbd7 {[%emt 0:10:58]} 9. c5 {[%emt 0:03:26]} Re8 {[%emt 0:04:03]} 10. Nxd5 {[%emt 0:03:32]} Nxd5 {[%emt 0:01:39]} 11. Qxd5 {[%emt 0:00:06]} e5 {[%emt 0:00:54]} 12. O-O-O {[%emt 0:08:34]} Qc7 {[%emt 0:13:26]} 13. dxe5 {[%emt 0:06:51]} Re6 {[%emt 0:18:45]} 14. Ng5 {[%emt 0:07:21]} Rxe5 {[%emt 0:04:56]} 15. Qxf7+ {[%emt 0:00:17]} Kh8 {[%emt 0:00:13]} 16. Ne6 {[%emt 0:00:53]} Rxe6 {[%emt 0:01:30]} 17. Qxe6 {[%emt 0:00:15]} Nf6 {[%emt 0:02:54]} 18. Qd6 {[%emt 0:00:18]} Qf7 {[%emt 0:03:52]} 19. Qd8+ {[%emt 0:01:47]} Ng8 {[%emt 0:00:23]} 20. b3 {[%emt 0:02:16]} b5 {[%emt 0:05:18]} 21. Bxb5 {[%emt 0:11:20]} Bb7 {[%emt 0:02:04]} 22. Qd7 {[%emt 0:01:13]} Qf6 {[%emt 0:00:06]} 23. Bd4 {[%emt 0:00:12]} Qf4+ {[%emt 0:03:14]} 24. Rd2 {[%emt 0:02:37]} Bxd4 {[%emt 0:04:27]} 25. Qxd4+ {[%emt 0:00:06]} Qxd4 {[%emt 0:00:20]} 26. Rxd4 {[%emt 0:00:02]} Bxg2 {[%emt 0:01:36]} 27. Rg1 {[%emt 0:00:40]} Rb8 {[%emt 0:01:41]} 28. Ba4 {[%emt 0:01:42]} Bh3 {[%emt 0:01:03]} 29. Rg3 {[%emt 0:00:40]} Bf5 {[%emt 0:00:19]} 30. Rc3 {[%emt 0:00:44]} Nf6 {[%emt 0:04:05]} 31. c6 {[%emt 0:00:14]} Ne8 {[%emt 0:04:33]} 32. c7 {[%emt 0:00:15]} 1-0

[Event "DFMMLV 2019"]
[Site "Braunfels"]
[Date "2019.06.20"]
[Round "1.23"]
[White "Reich, Kristina"]
[Black "Woniak, Katarzyna"]
[Result "0-1"]
[ECO "B38"]
[WhiteElo "1544"]
[BlackElo "1915"]
[Annotator "NA"]
[PlyCount "62"]
[EventDate "2019.06.20"]
[EventType "team-tourn"]
[EventCountry "GER"]
[SourceTitle "playchess.com"]
[Source "ChessBase"]
[SourceQuality "1"]
[WhiteTeam "Hamburg"]
[TimeControl "40/5400+30:1800+30"]

1. e4 {[%emt 0:00:00]} g6 {[%emt 0:00:00]} 2. d4 {[%emt 0:00:00]} Bg7 {[%emt 0:00:06]} 3. c4 {[%emt 0:00:00]} c5 {[%emt 0:03:36]} 4. Nf3 {[%emt 0:07:47]} cxd4 {[%emt 0:04:48]} 5. Nxd4 {[%emt 0:00:47]} Nc6 {[%emt 0:02:21]} 6. Be3 {[%emt 0:03:28]} d6 {[%emt 0:02:13]} 7. Nc3 {[%emt 0:04:14]} Nf6 {[%emt 0:03:13]} 8. Be2 {[%emt 0:02:02]} O-O {[%emt 0:03:22]} 9. O-O {[%emt 0:00:44]} Nd7 {[%emt 0:04:01]} 10. Kh1 {[%emt 0:09:29]} Nc5 {[%emt 0:09:06]} 11. Nxc6 {[%emt 0:06:36]} bxc6 {[%emt 0:00:07]} 12. Bxc5 {[%emt 0:00:53]} dxc5 {[%emt 0:00:13]} 13. Rc1 {[%emt 0:05:24]} Qc7 {[%emt 0:06:58]} 14. Qe1 {[%emt 0:08:19]} Be5 {[%emt 0:03:09]} 15. g3 {[%emt 0:06:53]} Bh3 {[%emt 0:01:48]} 16. Rg1 {[%emt 0:01:21]} Bd4 {[%emt 0:01:23]} 17. Bf1 {[%emt 0:04:58]} Be6 {[%emt 0:03:47]} 18. b3 {[%emt 0:01:30]} f5 {[%emt 0:08:37]} 19. Ne2 {[%emt 0:09:20]} fxe4 {[%emt 0:03:51]} 20. Nxd4 {[%emt 0:02:24]} cxd4 {[%emt 0:00:07]} 21. Qxe4 {[%emt 0:01:53]} Qd7 {[%emt 0:02:10]} 22. f3 {[%emt 0:06:27]} Rf6 {[%emt 0:05:38]} 23. Rd1 {[%emt 0:01:39]} Rd8 {[%emt 0:02:41]} 24. Bg2 {[%emt 0:04:08]} Bf5 {[%emt 0:02:17]} 25. Qe2 {[%emt 0:04:57]} Re6 {[%emt 0:04:40]} 26. Qd2 {[%emt 0:00:58]} Re3 {[%emt 0:00:55]} 27. Qxe3 {[%emt 0:01:54]} dxe3 {[%emt 0:00:13]} 28. Rxd7 {[%emt 0:00:11]} Rxd7 {[%emt 0:00:18]} 29. f4 {[%emt 0:03:50]} e2 {[%emt 0:05:02]} 30. Bf3 {[%emt 0:01:34]} Be4 {[%emt 0:04:30]} 31. Bxe4 {[%emt 0:01:05]} Rd1 {[%emt 0:00:06]} 0-1

[Event "DFMMLV 2019"]
[Site "Braunfels"]
[Date "2019.06.20"]
[Round "1.24"]
[White "Spiel, Marianne"]
[Black "Hoelzer, Jeanette"]
[Result "1-0"]
[ECO "C60"]
[WhiteElo "1894"]
[BlackElo "1662"]
[Annotator "NA"]
[PlyCount "61"]
[EventDate "2019.06.20"]
[EventType "team-tourn"]
[EventCountry "GER"]
[SourceTitle "playchess.com"]
[Source "ChessBase"]
[SourceQuality "1"]
[WhiteTeam "Bayern 1"]
[BlackTeam "Hamburg"]
[TimeControl "40/5400+30:1800+30"]

1. e4 {[%emt 0:00:00]} e5 {[%emt 0:00:00]} 2. Nf3 {[%emt 0:00:00]} Nc6 {[%emt 0:00:00]} 3. Bb5 {[%emt 0:00:00]} Nge7 {[%emt 0:00:20]} 4. O-O {[%emt 0:00:18]} g6 {[%emt 0:00:43]} 5. c3 {[%emt 0:00:40]} Bg7 {[%emt 0:00:38]} 6. d4 {[%emt 0:02:29]} exd4 {[%emt 0:01:17]} 7. cxd4 {[%emt 0:00:11]} a6 {[%emt 0:01:16]} 8. Ba4 {[%emt 0:00:46]} b5 {[%emt 0:01:07]} 9. Bc2 {[%emt 0:00:45]} O-O {[%emt 0:01:45]} 10. h3 {[%emt 0:02:58]} Bb7 {[%emt 0:04:36]} 11. Nc3 {[%emt 0:01:12]} Re8 {[%emt 0:02:34]} 12. Bg5 {[%emt 0:03:38]} d6 {[%emt 0:07:00]} 13. Nd5 {[%emt 0:03:22]} Kh8 {[%emt 0:11:59]} 14. Qd2 {[%emt 0:02:20]} Qc8 {[%emt 0:04:14]} 15. Nf6 {[%emt 0:00:40]} Rf8 {[%emt 0:02:42]} 16. Rad1 {[%emt 0:16:37]} Ng8 {[%emt 0:07:36]} 17. e5 {[%emt 0:04:01]} Nce7 {[%emt 0:14:03]} 18. Ne4 {[%emt 0:06:59]} dxe5 {[%emt 0:10:42]} 19. dxe5 {[%emt 0:00:32]} h6 {[%emt 0:04:22]} 20. Be3 {[%emt 0:04:55]} Nf5 {[%emt 0:02:14]} 21. Bc5 {[%emt 0:01:31]} Re8 {[%emt 0:03:23]} 22. g4 {[%emt 0:02:54]} Nfe7 {[%emt 0:02:17]} 23. Qf4 {[%emt 0:01:31]} Bd5 {[%emt 0:02:39]} 24. Nf6 {[%emt 0:03:28]} g5 {[%emt 0:03:40]} 25. Qe3 {[%emt 0:00:49]} Rd8 {[%emt 0:07:50]} 26. Nxd5 {[%emt 0:00:32]} Nxd5 {[%emt 0:00:38]} 27. Rxd5 {[%emt 0:00:38]} Rxd5 {[%emt 0:01:09]} 28. Qe4 {[%emt 0:00:24]} f5 {[%emt 0:01:54]} 29. Qxd5 {[%emt 0:01:55]} c6 {[%emt 0:00:56]} 30. Qf7 {[%emt 0:01:35]} Qe8 {[%emt 0:00:43]} 31. Qxf5 {[%emt 0:00:27]} 1-0

[Event "DFMMLV 2019"]
[Site "Braunfels"]
[Date "2019.06.20"]
[Round "1.25"]
[White "Hess, Olena"]
[Black "Bardorz, Jana"]
[Result "1/2-1/2"]
[ECO "E97"]
[WhiteElo "2097"]
[BlackElo "1769"]
[Annotator "NA"]
[PlyCount "103"]
[EventDate "2019.06.20"]
[EventType "team-tourn"]
[EventCountry "GER"]
[SourceTitle "playchess.com"]
[Source "ChessBase"]
[SourceQuality "1"]
[WhiteTeam "NRW"]
[BlackTeam "Bayern 2"]
[TimeControl "40/5400+30:1800+30"]

1. Nf3 {[%emt 0:00:00]} Nf6 {[%emt 0:00:00]} 2. c4 {[%emt 0:00:00]} g6 {[%emt 0:00:00]} 3. Nc3 {[%emt 0:00:00]} Bg7 {[%emt 0:00:05]} 4. e4 {[%emt 0:00:00]} d6 {[%emt 0:00:18]} 5. d4 {[%emt 0:00:04]} O-O {[%emt 0:00:08]} 6. Be2 {[%emt 0:00:16]} e5 {[%emt 0:00:29]} 7. O-O {[%emt 0:00:10]} Nc6 {[%emt 0:00:20]} 8. d5 {[%emt 0:00:11]} Ne7 {[%emt 0:00:14]} 9. Qc2 {[%emt 0:00:06]} Nd7 {[%emt 0:04:01]} 10. Rd1 {[%emt 0:00:13]} f5 {[%emt 0:00:48]} 11. Ng5 {[%emt 0:00:48]} Nf6 {[%emt 0:08:30]} 12. f3 {[%emt 0:09:59]} f4 {[%emt 0:07:18]} 13. c5 $16 {[%emt 0:07:43]} dxc5 {[%emt 0:07:30]} 14. Ne6 {[%emt 0:00:07]} Bxe6 {[%emt 0:01:57]} 15. dxe6 {[%emt 0:00:05]} Qc8 {[%emt 0:03:31]} 16. Nd5 {[%emt 0:02:29]} Nfxd5 {[%emt 0:07:07]} 17. exd5 {[%emt 0:00:24]} b6 {[%emt 0:02:52]} 18. Bc4 {[%emt 0:13:14]} Kh8 {[%emt 0:05:57]} 19. Bd2 {[%emt 0:05:28]} Nf5 {[%emt 0:05:02]} 20. Rac1 {[%emt 0:05:43]} Rd8 {[%emt 0:06:00]} 21. a3 {[%emt 0:07:32]} c6 {[%emt 0:02:31]} 22. dxc6 {[%emt 0:09:27]} Qxc6 {[%emt 0:01:16]} 23. e7 {[%emt 0:13:11]} Nxe7 {[%emt 0:04:58]} 24. Bd3 {[%emt 0:00:16]} Qf6 {[%emt 0:04:39]} 25. Be4 {[%emt 0:00:53]} Rac8 {[%emt 0:01:12]} 26. Bc3 {[%emt 0:00:36]} Nf5 {[%emt 0:01:57]} 27. Bxf5 {[%emt 0:05:31]} Qxf5 {[%emt 0:00:51]} 28. Qa4 {[%emt 0:00:11]} Qf7 {[%emt 0:05:53]} 29. Re1 {[%emt 0:00:27]} Rd5 {[%emt 0:02:35]} 30. Re4 {[%emt 0:00:51]} Qc7 {[%emt 0:03:37]} 31. Rce1 {[%emt 0:04:41]} h6 {[%emt 0:04:05]} 32. R4e2 {[%emt 0:05:09]} Rcd8 {[%emt 0:01:30]} 33. h3 {[%emt 0:03:00]} Qd7 {[%emt 0:03:45]} 34. Qc2 {[%emt 0:04:18]} Qd6 {[%emt 0:00:52]} 35. Qa4 {[%emt 0:00:24]} Rd7 {[%emt 0:02:12]} 36. Kh2 {[%emt 0:00:55]} Re7 {[%emt 0:01:06]} 37. Re4 {[%emt 0:01:00]} Qc7 {[%emt 0:01:21]} 38. Qc4 {[%emt 0:00:33]} Qd6 {[%emt 0:01:26]} 39. Qa4 {[%emt 0:01:54]} g5 {[%emt 0:00:14]} 40. Qa6 {[%emt 0:00:31]} Qc6 {[%emt 0:00:47]} 41. Kh1 {[%emt 0:07:34]} Qd7 {[%emt 0:02:00]} 42. Kh2 {[%emt 0:01:03]} b5 {[%emt 0:02:18]} 43. Qg6 {[%emt 0:05:52]} Qe6 {[%emt 0:03:33]} 44. Qh5 {[%emt 0:01:30]} Kh7 {[%emt 0:03:39]} 45. h4 {[%emt 0:05:19]} Qg6 {[%emt 0:03:55]} 46. Qg4 {[%emt 0:00:59]} gxh4 {[%emt 0:02:11]} 47. Rxf4 {[%emt 0:05:40]} Red7 {[%emt 0:07:06]} 48. Qxg6+ {[%emt 0:01:45]} Kxg6 {[%emt 0:00:06]} 49. Rxh4 {[%emt 0:00:02]} Bf6 {[%emt 0:03:45]} 50. Rhe4 {[%emt 0:01:10]} Re7 {[%emt 0:01:30]} 51. g4 {[%emt 0:04:22]} Bg5 {[%emt 0:05:25]} 52. Kg2 1/2-1/2

[Event "DFMMLV 2019"]
[Site "Braunfels"]
[Date "2019.06.20"]
[Round "1.26"]
[White "Todorova, Kalina"]
[Black "Plass, Mariana-Camelia"]
[Result "1/2-1/2"]
[ECO "E00"]
[WhiteElo "1796"]
[BlackElo "2042"]
[Annotator "NA"]
[PlyCount "95"]
[EventDate "2019.06.20"]
[EventType "team-tourn"]
[EventCountry "GER"]
[SourceTitle "playchess.com"]
[Source "ChessBase"]
[SourceQuality "1"]
[WhiteTeam "Bayern 2"]
[TimeControl "40/5400+30:1800+30"]

1. d4 {[%emt 0:00:00]} Nf6 {[%emt 0:00:00]} 2. c4 {[%emt 0:00:00]} e6 {[%emt 0:00:13]} 3. Nc3 {[%emt 0:00:22]} d5 {[%emt 0:00:07]} 4. g3 {[%emt 0:01:09]} dxc4 {[%emt 0:00:34]} 5. Bg2 {[%emt 0:01:09]} c5 {[%emt 0:01:24]} 6. d5 {[%emt 0:06:30]} exd5 {[%emt 0:02:42]} 7. Nxd5 {[%emt 0:00:20]} Nc6 {[%emt 0:06:09]} 8. Bf4 {[%emt 0:16:38]} Nxd5 {[%emt 0:01:14]} 9. Bxd5 {[%emt 0:00:12]} Qb6 {[%emt 0:12:48]} 10. Qd2 {[%emt 0:17:20]} Be6 {[%emt 0:03:53]} 11. Bxe6 {[%emt 0:14:47]} fxe6 {[%emt 0:00:03]} 12. Bg5 {[%emt 0:01:49]} Nd4 {[%emt 0:04:16]} 13. Nf3 {[%emt 0:03:10]} Nxf3+ {[%emt 0:03:47]} 14. exf3 {[%emt 0:00:05]} Qb4 {[%emt 0:00:31]} 15. O-O-O {[%emt 0:04:31]} Qxd2+ {[%emt 0:00:58]} 16. Rxd2 {[%emt 0:00:07]} h6 {[%emt 0:02:26]} 17. Bf4 {[%emt 0:01:41]} Rd8 {[%emt 0:05:32]} 18. Rxd8+ {[%emt 0:04:00]} Kxd8 {[%emt 0:00:02]} 19. Rd1+ {[%emt 0:00:33]} Ke8 {[%emt 0:02:34]} 20. Be5 {[%emt 0:05:22]} Rh7 {[%emt 0:02:01]} 21. Bc7 {[%emt 0:05:35]} Be7 {[%emt 0:01:13]} 22. Re1 {[%emt 0:00:34]} Kd7 {[%emt 0:02:44]} 23. Bb8 {[%emt 0:01:05]} a6 {[%emt 0:00:21]} 24. Rd1+ {[%emt 0:02:26]} Kc8 {[%emt 0:00:36]} 25. Be5 {[%emt 0:00:12]} Bf6 {[%emt 0:03:40]} 26. f4 {[%emt 0:00:54]} Rh8 {[%emt 0:01:16]} 27. Rd6 {[%emt 0:01:18]} Re8 {[%emt 0:02:25]} 28. Kc2 {[%emt 0:01:11]} Bxe5 {[%emt 0:06:38]} 29. fxe5 {[%emt 0:00:06]} Rf8 {[%emt 0:00:53]} 30. f4 {[%emt 0:01:30]} g5 {[%emt 0:02:58]} 31. Rxe6 {[%emt 0:00:07]} gxf4 {[%emt 0:00:06]} 32. gxf4 {[%emt 0:00:19]} Rxf4 {[%emt 0:00:05]} 33. Rxh6 {[%emt 0:00:06]} Re4 {[%emt 0:02:31]} 34. e6 {[%emt 0:01:29]} b5 {[%emt 0:00:18]} 35. h4 {[%emt 0:05:54]} Kd8 {[%emt 0:00:19]} 36. e7+ {[%emt 0:01:36]} Kxe7 {[%emt 0:00:28]} 37. Rxa6 {[%emt 0:00:14]} Rxh4 {[%emt 0:01:17]} 38. Ra5 {[%emt 0:00:10]} b4 {[%emt 0:05:24]} 39. Rxc5 {[%emt 0:00:34]} Rh2+ {[%emt 0:04:55]} 40. Kc1 {[%emt 0:00:30]} Rh1+ {[%emt 0:01:22]} 41. Kc2 {[%emt 0:30:22]} Rh2+ {[%emt 0:30:07]} 42. Kc1 {[%emt 0:00:10]} Rh1+ {[%emt 0:02:40]} 43. Kc2 {[%emt 0:00:05]} Rh2+ 44. Kc1 b3 45. axb3 cxb3 46. Rc3 Rh1+ 47. Kd2 Rh2+ 48. Kc1 1/2-1/2